bitfinex-derivatives/quotes_BTCF0:USTF0_20241227
["timestamp","ask_amount","ask_price","bid_price","bid_amount"]
[1735327443236,0.05308,94330.0,94325.0,0.00159018]
[1735327444625,0.05708,94330.0,94325.0,0.00159018]
[1735327444828,0.05708,94330.0,94325.0,0.05467318]
[1735327445233,0.05708,94330.0,94329.0,1.8608]
[1735327445933,0.05908,94330.0,94329.0,1.8608]
[1735327447427,0.006,94330.0,94329.0,1.913881]
[1735327448937,0.005,94330.0,94329.0,1.913881]
[1735327449534,0.004,94330.0,94329.0,1.913881]
[1735327449735,0.3608,94349.0,94329.0,1.913881]
[1735327449736,0.3608,94349.0,94338.0,0.053075]
[1735327450039,0.053072,94345.0,94339.0,0.0698]
[1735327450643,0.053072,94345.0,94340.0,0.053074]
[1735327451342,0.055072,94345.0,94340.0,0.053074]
[1735327451543,0.055072,94345.0,94339.0,0.0698]
[1735327451838,0.003,94345.0,94344.0,0.053072]
[1735327453841,0.053065,94357.0,94340.0,0.22366422]
[1735327454045,0.007,94345.0,94340.0,0.22366422]
[1735327454238,0.007,94345.0,94344.0,0.053072]
[1735327454743,0.00159048,94360.0,94341.0,1.5]
[1735327454744,0.00159048,94360.0,94357.0,0.053065]
[1735327455245,0.053064,94359.0,94350.0,0.053069]
[1735327457149,0.053064,94359.0,94351.0,0.053068]
[1735327457341,0.060064,94359.0,94351.0,0.053068]
[1735327457843,0.060064,94359.0,94351.0,0.088468]
[1735327458149,0.063064,94359.0,94351.0,0.088468]
[1735327458340,0.01,94359.0,94352.0,0.19031108]
[1735327458541,0.053065,94358.0,94352.0,0.19031108]
[1735327460546,0.053067,94353.0,94351.0,0.001]
[1735327460754,0.05307,94349.0,94348.0,0.25416614]
[1735327460940,0.053073,94342.0,94340.0,0.31686069]
[1735327461143,0.3608,94341.0,94340.0,0.31686069]
[1735327461946,0.3608,94341.0,94340.0,0.31786069]
[1735327462555,0.3608,94341.0,94340.0,0.001]
[1735327463051,0.006,94342.0,94341.0,0.053074]
[1735327463444,0.05307,94349.0,94344.0,0.053072]
[1735327463640,0.05307,94349.0,94341.0,1.5]
[1735327463641,0.5186009,94350.0,94341.0,1.50092]
[1735327463846,0.3608,94350.0,94349.0,0.05307]
[1735327465251,0.3748,94350.0,94349.0,0.05407]
[1735327466746,0.3718,94350.0,94349.0,0.05407]
[1735327466952,0.3698,94350.0,94349.0,0.05407]
[1735327467151,0.009,94350.0,94349.0,0.05407]
[1735327467343,0.012,94350.0,94349.0,0.05407]
[1735327468352,0.003,94350.0,94349.0,0.05307]
[1735327468655,0.009,94350.0,94349.0,0.05407]
[1735327469160,0.3718,94350.0,94349.0,0.05407]
[1735327469959,0.3658,94350.0,94349.0,0.05307]
[1735327470158,0.3748,94350.0,94349.0,0.05407]
[1735327470856,0.3728,94350.0,94349.0,0.05407]
[1735327471449,0.3698,94350.0,94349.0,0.05407]
[1735327471648,0.3748,94350.0,94349.0,0.05407]
[1735327472150,0.4078,94350.0,94349.0,0.05407]
[1735327474658,0.3748,94350.0,94349.0,0.05407]
[1735327474858,0.014,94350.0,94349.0,0.05407]
[1735327478759,0.15755036,94355.0,94349.0,0.05407]
[1735327478960,0.15755036,94355.0,94354.0,0.053067]
[1735327479564,0.36136001,94358.0,94350.0,1.60182]
[1735327479763,0.12622814,94356.0,94355.0,0.053066]
[1735327480160,0.12622814,94356.0,94355.0,0.413866]
[1735327480464,0.15755036,94363.0,94362.0,0.053062]
[1735327481053,0.00159006,94369.0,94355.0,0.3608]
[1735327481258,0.09467037,94360.0,94359.0,0.10769915]
[1735327481461,0.09467037,94360.0,94355.0,0.3608]
[1735327481862,0.009,94356.0,94355.0,0.414866]
[1735327483467,0.009,94360.0,94359.0,0.054064]
[1735327484061,0.00159006,94369.0,94356.0,0.053065]
[1735327484062,0.09467037,94367.0,94356.0,0.053065]
[1735327484366,0.09467037,94367.0,94363.0,0.053061]
[1735327485166,0.09467037,94367.0,94359.0,0.001]
[1735327485359,0.09467037,94367.0,94364.0,0.053061]
[1735327485555,0.09467037,94367.0,94366.0,0.3608]
[1735327486256,0.10567037,94367.0,94366.0,0.3608]
[1735327486668,0.09767037,94367.0,94366.0,0.3608]
[1735327486871,0.10667037,94367.0,94366.0,0.3618]
[1735327487164,0.012,94367.0,94366.0,0.3618]
[1735327487372,0.012,94367.0,94366.0,0.001]
[1735327487759,0.009,94367.0,94366.0,0.001]
[1735327487967,0.014,94367.0,94366.0,0.001]
[1735327488170,0.014,94367.0,94366.0,0.00839739]
[1735327488375,0.014,94367.0,94366.0,0.001]
[1735327490173,0.014,94367.0,94366.0,1.501]
[1735327494380,0.014,94367.0,94366.0,0.001]
[1735327494681,0.067059,94367.0,94366.0,0.001]
[1735327495670,0.014,94367.0,94366.0,0.001]
[1735327499681,0.45547037,94377.0,94366.0,1.501]
[1735327499881,0.45547037,94377.0,94376.0,0.053054]
[1735327500275,0.00056001,94389.0,94388.0,0.053048]
[1735327500473,0.15755036,94390.0,94388.0,1.913848]
[1735327500674,0.0704,94409.0,94388.0,1.8608]
[1735327500976,0.0704,94409.0,94389.0,0.1031]
[1735327501378,0.035,94409.0,94407.0,0.053036]
[1735327501583,0.035,94409.0,94400.0,0.053041]
[1735327501880,0.035,94409.0,94390.0,0.10769915]
[1735327502180,0.035,94409.0,94405.0,0.053038]
[1735327502382,0.19273977,94409.0,94405.0,0.053038]
[1735327502777,0.19473977,94409.0,94405.0,0.053038]
[1735327503574,0.037,94409.0,94405.0,0.053038]
[1735327504883,0.035,94409.0,94405.0,0.053038]
[1735327505079,0.037,94409.0,94405.0,0.053038]
[1735327506884,0.037,94409.0,94382.0,0.05305]
[1735327506885,0.3608,94407.0,94380.0,0.19041551]
[1735327507188,0.337,94409.0,94365.0,0.74259103]
[1735327507189,0.3608,94384.0,94365.0,0.74259103]
[1735327507482,0.053056,94373.0,94365.0,0.38179103]
[1735327507688,0.053056,94373.0,94365.0,0.38083103]
[1735327507987,0.053059,94367.0,94357.0,0.26325919]
[1735327508685,0.049059,94367.0,94357.0,0.26325919]
[1735327508889,0.049059,94367.0,94354.0,0.3608]
[1735327509789,0.052059,94367.0,94354.0,0.3608]
[1735327510485,0.052059,94367.0,94349.0,0.3608]
[1735327510692,0.052059,94367.0,94346.0,0.053071]
[1735327510693,0.054059,94367.0,94346.0,0.053071]
[1735327511193,0.052059,94367.0,94346.0,0.053071]
[1735327511488,0.052059,94367.0,94348.0,0.05307]
[1735327511489,0.053064,94359.0,94348.0,0.05307]
[1735327511692,0.413864,94359.0,94348.0,0.05307]
[1735327512186,0.3608,94359.0,94348.0,0.05307]
[1735327512389,0.053069,94351.0,94348.0,0.05307]
[1735327512588,0.413869,94351.0,94348.0,0.05307]
[1735327513687,0.0683,94358.0,94348.0,0.05407]
[1735327513887,0.3608,94360.0,94356.0,0.053065]
[1735327514091,0.3608,94360.0,94358.0,0.053064]
[1735327514290,0.3608,94360.0,94350.0,0.053069]
[1735327514492,0.001,94359.0,94350.0,0.053069]
[1735327514694,0.001,94359.0,94352.0,0.053068]
[1735327514991,0.3608,94360.0,94352.0,0.053068]
[1735327515297,0.3658,94360.0,94352.0,0.053068]
[1735327515683,0.002,94359.0,94352.0,0.053068]
[1735327515887,0.002,94359.0,94354.0,0.053067]
[1735327516694,0.002,94359.0,94355.0,1.5]
[1735327517295,0.053063,94361.0,94355.0,1.5]
[1735327517495,0.003,94360.0,94355.0,1.5]
[1735327517899,0.004,94359.0,94355.0,1.5]
[1735327518197,0.005,94359.0,94355.0,1.5]
[1735327518386,0.001,94359.0,94355.0,1.5]
[1735327518797,0.001,94359.0,94354.0,0.053067]
[1735327519801,0.001,94359.0,94355.0,1.5]
[1735327520696,0.005,94359.0,94355.0,1.5]
[1735327521292,0.005,94359.0,94345.0,0.413871]
[1735327521699,0.005,94359.0,94346.0,1.5]
[1735327522099,0.001,94359.0,94346.0,1.5]
[1735327522299,0.005,94359.0,94346.0,1.5]
[1735327523009,0.053067,94354.0,94346.0,1.5]
[1735327523204,0.3608,94349.0,94346.0,1.5]
[1735327524207,0.3608,94349.0,94346.0,1.501]
[1735327524804,0.3608,94349.0,94346.0,1.554071]
[1735327525109,0.001,94349.0,94348.0,0.05307]
[1735327525711,0.001,94349.0,94346.0,1.50192]
[1735327526005,0.001,94349.0,94346.0,1.501]
[1735327526307,0.001,94349.0,94346.0,1.5]
[1735327527104,0.002,94349.0,94346.0,1.5]
[1735327527802,0.001,94349.0,94346.0,1.5]
[1735327528205,0.41387,94348.0,94346.0,1.5]
[1735327529607,0.3608,94348.0,94344.0,0.00835097]
[1735327529909,0.053073,94343.0,94334.0,0.053078]
[1735327531009,0.053075,94340.0,94334.0,0.055078]
[1735327531708,0.053075,94340.0,94334.0,0.057078]
[1735327532207,0.053075,94340.0,94334.0,0.055078]
[1735327532414,0.053075,94340.0,94334.0,0.057078]
[1735327533709,0.0684,94353.0,94338.0,0.3608]
[1735327533913,0.5188303,94358.0,94340.0,0.10769915]
[1735327534209,0.053068,94352.0,94345.0,0.053071]
[1735327534415,0.3608,94346.0,94341.0,0.0343]
[1735327535407,0.3608,94346.0,94341.0,0.087374]
[1735327535610,0.3608,94346.0,94341.0,0.088374]
[1735327536510,0.3608,94346.0,94341.0,0.0353]
[1735327536715,0.05307,94348.0,94343.0,0.053072]
[1735327536911,0.001,94346.0,94344.0,0.053072]
[1735327537103,0.001,94346.0,94345.0,0.3961]
[1735327538004,0.002,94346.0,94345.0,0.3961]
[1735327538203,0.002,94346.0,94345.0,0.449172]
[1735327538509,0.053067,94354.0,94347.0,0.05307]
[1735327538818,0.053068,94353.0,94347.0,0.05307]
[1735327539117,0.05307,94348.0,94345.0,0.001]
[1735327539629,0.053071,94347.0,94345.0,0.001]
[1735327540117,0.001,94346.0,94345.0,0.001]
[1735327540509,0.053071,94347.0,94345.0,0.001]
[1735327540709,0.053071,94347.0,94341.0,0.06165468]
[1735327541216,0.054071,94347.0,94341.0,0.06165468]
[1735327541516,0.053071,94346.0,94341.0,0.06165468]
[1735327542211,0.053073,94343.0,94341.0,0.00858168]
[1735327542412,0.12718825,94347.0,94337.0,0.25444169]
[1735327542614,0.3608,94340.0,94337.0,0.25444169]
[1735327543502,0.3608,94340.0,94337.0,0.26301085]
[1735327543809,0.413875,94340.0,94335.0,0.053077]
[1735327544915,0.413875,94340.0,94337.0,0.001]
[1735327545612,0.413875,94340.0,94335.0,0.06359429]
[1735327546110,0.54006325,94340.0,94335.0,0.06359429]
[1735327546310,0.54006325,94340.0,94335.0,0.06459429]
[1735327547218,0.54006325,94340.0,94337.0,0.001]
[1735327547922,0.54006325,94340.0,94335.0,0.06459429]
[1735327548516,0.48698825,94340.0,94335.0,0.01151729]
[1735327548718,0.12618825,94339.0,94337.0,0.054076]
[1735327549107,0.12618825,94339.0,94337.0,0.001]
[1735327549911,0.17926325,94339.0,94337.0,0.001]
[1735327550317,0.053075,94339.0,94337.0,0.001]
[1735327550719,0.053076,94337.0,94335.0,0.002]
[1735327551222,0.36136001,94340.0,94336.0,0.053077]
[1735327551418,0.3608,94340.0,94336.0,0.053077]
[1735327551620,0.052077,94336.0,94330.0,0.04153628]
[1735327552012,0.12618825,94339.0,94330.0,0.04153628]
[1735327552207,0.12618825,94339.0,94334.0,0.053078]
[1735327552422,0.12618825,94339.0,94336.0,0.001]
[1735327553317,0.48698825,94339.0,94336.0,0.001]
[1735327553526,0.3608,94339.0,94336.0,0.001]
[1735327553923,0.3608,94339.0,94334.0,0.053078]
[1735327554519,0.12612012,94336.0,94334.0,0.053078]
[1735327555326,0.12512012,94336.0,94334.0,0.053078]
[1735327555825,0.12512012,94336.0,94334.0,0.054078]
[1735327556017,0.41443501,94339.0,94334.0,0.054078]
[1735327556217,0.413875,94339.0,94334.0,0.053078]
[1735327556424,0.413875,94339.0,94334.0,0.054078]
[1735327556922,0.413875,94339.0,94334.0,0.001]
[1735327556923,0.3608,94339.0,94334.0,0.001]
[1735327557228,0.3608,94339.0,94337.0,0.053076]
[1735327558520,0.3608,94339.0,94337.0,0.054076]
[1735327560830,0.21054529,94340.0,94337.0,0.054076]
[1735327561824,0.053075,94340.0,94337.0,0.054076]
[1735327562722,0.053076,94338.0,94337.0,0.054076]
[1735327562915,0.053076,94338.0,94337.0,0.053076]
[1735327563121,0.053076,94338.0,94337.0,0.054076]
[1735327563724,0.053076,94338.0,94337.0,0.001]
[1735327564916,0.053083,94325.0,94324.0,0.31811274]
[1735327565122,0.053086,94319.0,94318.0,0.12330244]
[1735327566125,0.3608,94325.0,94320.0,0.053085]
[1735327566326,0.053079,94332.0,94327.0,0.053081]
[1735327566527,0.13368718,94326.0,94324.0,0.3608]
[1735327566723,0.13368718,94326.0,94325.0,0.120683]
[1735327567820,0.13368718,94326.0,94325.0,1.620683]
[1735327568022,0.053077,94336.0,94325.0,1.620683]
[1735327568023,0.21055359,94336.0,94325.0,1.623683]
[1735327568920,0.21055359,94336.0,94326.0,0.053082]
[1735327569222,0.21055359,94336.0,94327.0,0.053081]
[1735327569526,0.15747659,94334.0,94327.0,0.053081]
[1735327570932,0.15747659,94334.0,94325.0,0.0756]
[1735327571230,0.15747659,94334.0,94332.0,0.053079]
[1735327571931,0.15747659,94336.0,94327.0,0.006]
[1735327572233,0.15747659,94336.0,94334.0,0.053078]
[1735327573436,0.15747659,94337.0,94336.0,0.053077]
[1735327574431,0.13642919,94337.0,94336.0,0.053077]
[1735327574627,0.05306,94367.0,94336.0,0.053077]
[1735327574628,0.17120851,94358.0,94357.0,0.053065]
[1735327574830,0.22242582,94364.0,94357.0,0.413865]
[1735327575034,0.14281928,94364.0,94363.0,0.053062]
[1735327575840,0.14281928,94364.0,94363.0,1.553062]
[1735327576032,0.31547954,94370.0,94369.0,0.053058]
[1735327576539,0.36136001,94378.0,94377.0,0.053054]
[1735327576720,0.3608,94378.0,94377.0,0.053054]
[1735327577623,0.3668,94378.0,94377.0,0.054054]
[1735327578133,0.3718,94378.0,94377.0,0.002]
[1735327581840,0.011,94378.0,94377.0,0.002]
[1735327582432,0.053061,94365.0,94350.0,0.00158978]
[1735327582632,0.053062,94363.0,94356.0,0.053065]
[1735327582839,0.0356,94364.0,94350.0,0.00158978]
[1735327583130,0.053068,94352.0,94350.0,0.00158978]
[1735327583336,0.0359,94351.0,94350.0,0.00158978]
[1735327584042,0.0359,94351.0,94328.0,0.053081]
[1735327584043,0.053078,94334.0,94328.0,0.053081]
[1735327584427,0.3608,94340.0,94328.0,0.053081]
[1735327584739,0.3608,94340.0,94336.0,0.053077]
[1735327584740,0.0356,94339.0,94336.0,0.053077]
[1735327585052,0.0389,94351.0,94330.0,0.10769915]
[1735327585053,0.053072,94345.0,94333.0,0.3608]
[1735327585342,0.036,94350.0,94347.0,0.05307]
[1735327586138,0.3608,94353.0,94349.0,0.053069]
[1735327586336,0.3608,94353.0,94351.0,0.053068]
[1735327587846,0.3618,94353.0,94351.0,0.053068]
[1735327588045,0.3678,94353.0,94351.0,0.054068]
[1735327588447,0.3678,94353.0,94352.0,1.5]
[1735327590139,0.007,94353.0,94351.0,0.054068]
[1735327590850,0.004,94353.0,94352.0,1.5]
[1735327591342,0.3608,94380.0,94371.0,0.053057]
[1735327592140,0.3608,94380.0,94372.0,0.053056]
[1735327592842,0.3608,94380.0,94373.0,0.053056]
[1735327593042,0.3658,94380.0,94368.0,0.3608]
[1735327593649,0.3608,94380.0,94368.0,0.3608]
[1735327593851,0.3688,94380.0,94371.0,0.001]
[1735327594038,0.3688,94380.0,94375.0,0.053054]
[1735327594951,0.3658,94380.0,94375.0,0.053054]
[1735327595340,0.3608,94380.0,94375.0,0.053054]
[1735327595541,0.3648,94380.0,94375.0,0.054054]
[1735327596037,0.3648,94380.0,94376.0,0.053054]
[1735327596239,0.3658,94380.0,94376.0,0.053054]
[1735327596952,0.3658,94380.0,94378.0,0.053053]
[1735327597156,0.3688,94380.0,94378.0,0.053053]
[1735327598147,0.3688,94380.0,94378.0,0.054053]
[1735327598651,0.3698,94380.0,94378.0,0.054053]
[1735327599647,0.3698,94380.0,94378.0,0.055053]
[1735327605660,0.05160764,94379.0,94378.0,0.055053]
[1735327606248,0.05160764,94379.0,94378.0,0.06462192]
[1735327606660,0.05160764,94379.0,94378.0,0.06362192]
[1735327606855,0.06060764,94379.0,94378.0,0.06462192]
[1735327607160,0.06060764,94379.0,94378.0,0.055053]
[1735327607359,0.06060764,94379.0,94359.0,0.3608]
[1735327607360,0.05306,94366.0,94359.0,0.3608]
[1735327607569,0.0707,94365.0,94359.0,0.3608]
[1735327607770,0.0707,94365.0,94352.0,0.00158973]
[1735327607966,0.3608,94360.0,94352.0,0.01076669]
[1735327608575,0.3608,94360.0,94352.0,0.00917696]
[1735327608877,0.3608,94360.0,94348.0,1.50096]
[1735327609065,0.3608,94360.0,94354.0,0.053066]
[1735327609267,0.3608,94360.0,94355.0,0.053066]
[1735327609467,0.3608,94360.0,94356.0,0.053065]
[1735327609872,0.3618,94360.0,94356.0,0.053065]
[1735327610268,0.15734755,94357.0,94356.0,0.053065]
[1735327611562,0.15734755,94358.0,94356.0,0.053065]
[1735327612167,0.002,94357.0,94356.0,0.053065]
[1735327612576,0.15934755,94357.0,94356.0,0.053065]
[1735327613471,0.16134755,94357.0,94356.0,0.053065]
[1735327613671,0.004,94357.0,94356.0,0.053065]
[1735327613876,0.002,94358.0,94356.0,0.053065]
[1735327614176,0.004,94357.0,94356.0,0.053065]
[1735327615061,0.006,94357.0,94356.0,0.053065]
[1735327615672,0.002,94357.0,94356.0,0.053065]
[1735327616477,0.006,94357.0,94356.0,0.053065]
[1735327619583,0.002,94357.0,94356.0,0.053065]
[1735327619784,0.006,94357.0,94356.0,0.053065]
[1735327620077,0.006,94357.0,94356.0,1.553065]
[1735327620274,0.002,94357.0,94356.0,1.553065]
[1735327620579,0.006,94357.0,94356.0,1.553065]
[1735327621179,0.004,94357.0,94356.0,1.553065]
[1735327621485,0.006,94357.0,94356.0,1.913865]
[1735327621870,0.34575249,94364.0,94356.0,1.913865]
[1735327622181,0.16234755,94357.0,94356.0,1.913865]
[1735327622577,0.15834755,94357.0,94356.0,1.913865]
[1735327622782,0.16234755,94357.0,94356.0,1.913865]
[1735327623178,0.18840494,94364.0,94363.0,0.053062]
[1735327623681,0.001,94364.0,94356.0,1.914785]
[1735327623984,0.001,94364.0,94363.0,0.053062]
[1735327624182,0.12611453,94365.0,94363.0,0.053062]
[1735327624183,0.15764317,94373.0,94372.0,0.053057]
[1735327624982,0.3608,94384.0,94377.0,0.053054]
[1735327625181,0.3608,94384.0,94378.0,1.5]
[1735327625885,0.18840494,94386.0,94379.0,0.053053]
[1735327626196,0.18840494,94386.0,94378.0,1.86176]
[1735327626384,0.18840494,94386.0,94385.0,0.053049]
[1735327626580,0.053042,94398.0,94386.0,0.053048]
[1735327627680,0.17609915,94400.0,94386.0,0.053048]
[1735327628090,0.05160145,94391.0,94386.0,0.053048]
[1735327628391,0.05160145,94391.0,94386.0,0.054048]
[1735327628890,0.05160145,94391.0,94386.0,0.055048]
[1735327629193,0.007,94391.0,94386.0,0.055048]
[1735327629374,0.007,94391.0,94386.0,0.054048]
[1735327629580,0.053048,94387.0,94386.0,0.002]
[1735327630490,0.007,94391.0,94375.0,0.053055]
[1735327630688,0.3608,94377.0,94375.0,0.053055]
[1735327630992,0.0338,94376.0,94368.0,0.3608]
[1735327631179,0.053056,94373.0,94369.0,0.053058]
[1735327631387,0.053057,94371.0,94368.0,0.3608]
[1735327632082,0.0338,94376.0,94368.0,0.42326645]
[1735327632289,0.005,94373.0,94371.0,0.053057]
[1735327632689,0.004,94373.0,94371.0,0.053057]
[1735327632987,0.053055,94375.0,94371.0,0.053057]
[1735327633690,0.0358,94374.0,94371.0,0.053057]
[1735327633892,0.0358,94374.0,94368.0,0.01040845]
[1735327634191,0.0358,94374.0,94372.0,0.053056]
[1735327634380,0.003,94373.0,94372.0,0.053056]
[1735327634782,0.0358,94374.0,94372.0,0.053056]
[1735327634987,0.0388,94374.0,94372.0,0.053056]
[1735327635291,0.004,94373.0,94372.0,0.053056]
[1735327635495,0.060056,94373.0,94372.0,0.001]
[1735327635884,0.007,94373.0,94366.0,0.01116807]
[1735327636093,0.053059,94370.0,94366.0,0.01116807]
[1735327636284,0.053059,94370.0,94366.0,0.00158955]
[1735327637789,0.053059,94370.0,94367.0,1.55306]
[1735327638188,0.055059,94370.0,94367.0,1.55306]
[1735327638577,0.002,94370.0,94366.0,0.00258955]
[1735327638782,0.05306,94368.0,94366.0,0.00258955]
[1735327638983,0.0364,94367.0,94366.0,0.00258955]
[1735327639195,0.0364,94367.0,94366.0,0.00158955]
[1735327640695,0.0364,94367.0,94366.0,0.00258955]
[1735327640998,0.0364,94367.0,94350.0,0.053069]
[1735327641301,0.053066,94356.0,94350.0,0.053069]
[1735327641495,0.0336,94355.0,94350.0,0.053069]
[1735327642281,0.053069,94351.0,94348.0,0.20006957]
[1735327642796,0.053069,94351.0,94348.0,0.00959247]
[1735327642995,0.053069,94351.0,94346.0,0.3608]
[1735327643197,0.053071,94347.0,94337.0,0.00158977]
[1735327643396,0.053076,94338.0,94337.0,0.00158977]
[1735327644094,0.086576,94338.0,94337.0,0.00158977]
[1735327644488,0.086576,94338.0,94337.0,0.00458977]
[1735327644991,0.3608,94339.0,94337.0,0.00158977]
[1735327645193,0.3608,94339.0,94338.0,0.053076]
[1735327645493,0.3608,94339.0,94338.0,1.553076]
[1735327645995,0.3618,94339.0,94338.0,1.553076]
[1735327646193,0.001,94339.0,94338.0,1.553076]
[1735327646896,0.005,94339.0,94338.0,1.553076]
[1735327647398,0.002,94339.0,94338.0,1.553076]
[1735327647590,0.001,94339.0,94338.0,1.553076]
[1735327651087,0.0335,94354.0,94348.0,0.05307]
[1735327651292,0.09432622,94358.0,94349.0,0.05307]
[1735327651899,0.09432622,94359.0,94349.0,0.05307]
[1735327652094,0.09432622,94359.0,94351.0,0.053069]
[1735327652290,0.09432622,94359.0,94354.0,0.053067]
[1735327652906,0.10769915,94364.0,94346.0,0.37043947]
[1735327653199,0.053066,94356.0,94346.0,0.37043947]
[1735327653400,0.053066,94356.0,94346.0,0.42351047]
[1735327654703,0.054066,94356.0,94346.0,0.42351047]
[1735327654892,0.054066,94356.0,94347.0,0.053071]
[1735327655294,0.054066,94356.0,94349.0,0.05307]
[1735327656096,0.054066,94356.0,94354.0,0.053067]
[1735327656097,0.001,94356.0,94354.0,0.053067]
[1735327656305,0.36136001,94360.0,94346.0,0.47813862]
[1735327656493,0.002,94356.0,94346.0,0.47813862]
[1735327656795,0.002,94356.0,94355.0,0.053067]
[1735327657103,0.004,94356.0,94355.0,1.553067]
[1735327657492,0.001,94356.0,94355.0,1.553067]
[1735327658206,0.36136001,94360.0,94357.0,0.053065]
[1735327658409,0.3608,94360.0,94357.0,0.053065]
[1735327659001,0.3608,94360.0,94359.0,0.053064]
[1735327660011,0.3638,94360.0,94359.0,0.053064]
[1735327660311,0.3678,94360.0,94359.0,0.054064]
[1735327660702,0.3648,94360.0,94359.0,0.054064]
[1735327660903,0.3678,94360.0,94359.0,0.054064]
[1735327664017,0.00158996,94375.0,94359.0,0.37144806]
[1735327664311,0.00158996,94375.0,94371.0,0.053058]
[1735327664511,0.00158996,94375.0,94374.0,0.053056]
[1735327665212,0.1571852,94384.0,94370.0,0.3608]
[1735327665407,0.1571852,94384.0,94383.0,0.053051]
[1735327665809,0.1571852,94384.0,94383.0,1.621051]
[1735327666512,0.1571852,94386.0,94385.0,0.05305]
[1735327667315,0.1571852,94394.0,94383.0,1.58059576]
[1735327667508,0.1571852,94394.0,94383.0,1.57867576]
[1735327667709,0.007,94386.0,94385.0,0.05405]
[1735327668215,0.007,94386.0,94385.0,0.05505]
[1735327669508,0.007,94386.0,94385.0,0.05405]
[1735327669710,0.007,94394.0,94392.0,0.053046]
[1735327670519,0.36136001,94395.0,94393.0,0.053045]
[1735327670712,0.3608,94395.0,94393.0,0.053045]
[1735327671920,0.3608,94396.0,94392.0,0.001]
[1735327672113,0.1571852,94400.0,94392.0,0.001]
[1735327672312,0.009,94394.0,94393.0,0.053045]
[1735327672820,0.009,94394.0,94393.0,0.054045]
[1735327673316,0.3698,94394.0,94383.0,0.00092]
[1735327673520,0.053053,94380.0,94374.0,0.00158936]
[1735327673717,0.053055,94376.0,94374.0,0.01141721]
[1735327673915,0.053055,94376.0,94374.0,0.00158936]
[1735327675626,0.0321,94379.0,94376.0,0.053055]
[1735327675818,0.0321,94379.0,94377.0,0.053054]
[1735327676515,0.0324,94383.0,94382.0,0.053052]
[1735327677923,0.0344,94383.0,94382.0,0.054052]
[1735327678708,0.0344,94383.0,94382.0,0.055052]
[1735327678916,0.0404,94383.0,94382.0,1.555052]
[1735327680020,0.008,94383.0,94382.0,1.555052]
[1735327680725,0.008,94383.0,94382.0,1.56508399]
[1735327681213,0.008,94383.0,94382.0,0.06508399]
[1735327681616,0.008,94383.0,94382.0,1.56508399]
[1735327686338,0.1571852,94395.0,94394.0,0.053045]
[1735327686516,0.0335,94397.0,94396.0,0.053044]
[1735327687026,0.0335,94397.0,94396.0,1.553044]
[1735327688033,0.3943,94397.0,94394.0,0.002]
[1735327688232,0.053044,94395.0,94394.0,0.001]
[1735327688426,0.053046,94391.0,94383.0,0.053051]
[1735327689736,0.053046,94391.0,94383.0,0.054051]
[1735327690534,0.053046,94391.0,94383.0,0.06410396]
[1735327691129,0.059046,94391.0,94383.0,0.06410396]
[1735327691932,0.006,94391.0,94388.0,0.053048]
[1735327693129,0.006,94391.0,94388.0,0.054048]
[1735327693334,0.007,94391.0,94388.0,0.054048]
[1735327694137,0.007,94391.0,94389.0,1.5]
[1735327694825,0.007,94391.0,94389.0,1.553047]
[1735327695223,0.001,94391.0,94389.0,1.553047]
[1735327695426,0.007,94391.0,94389.0,1.554047]
[1735327695629,0.19611245,94391.0,94389.0,1.554047]
[1735327695829,0.19511245,94391.0,94389.0,1.555047]
[1735327696627,0.19511245,94391.0,94390.0,0.3608]
[1735327697329,0.19511245,94391.0,94389.0,1.556007]
[1735327697526,0.19511245,94391.0,94389.0,1.555047]
[1735327697835,0.19511245,94391.0,94390.0,0.001]
[1735327698037,0.006,94391.0,94390.0,0.3618]
[1735327698228,0.006,94391.0,94390.0,0.3628]
[1735327698431,0.18911245,94398.0,94390.0,0.3618]
[1735327698635,0.006,94391.0,94390.0,0.414847]
[1735327698836,0.006,94391.0,94390.0,0.413847]
[1735327699534,0.006,94391.0,94390.0,0.414847]
[1735327700742,0.006,94391.0,94390.0,0.415847]
[1735327707338,0.006,94391.0,94390.0,0.055047]
[1735327710338,0.006,94391.0,94390.0,1.555047]
[1735327713047,0.006,94391.0,94390.0,1.502]
[1735327713249,0.006,94391.0,94390.0,1.555047]
[1735327716057,0.19511245,94391.0,94390.0,1.555047]
[1735327717259,0.006,94391.0,94390.0,1.555047]
[1735327717846,0.3608,94402.0,94401.0,0.053041]
[1735327718757,0.3608,94402.0,94401.0,1.553041]
[1735327719554,0.3608,94402.0,94401.0,1.554041]
[1735327720156,0.3608,94402.0,94401.0,1.555041]
[1735327720354,0.3608,94402.0,94401.0,1.554041]
[1735327722655,0.3608,94402.0,94401.0,0.054041]
[1735327724960,0.3608,94402.0,94401.0,0.06206312]
[1735327725565,0.00056001,94413.0,94412.0,0.053035]
[1735327725755,0.0688,94422.0,94412.0,0.3608]
[1735327725953,0.0688,94422.0,94417.0,0.053032]
[1735327726157,0.0688,94422.0,94417.0,1.553032]
[1735327727258,0.00794319,94438.0,94417.0,1.553032]
[1735327727259,0.11359443,94448.0,94417.0,1.501]
[1735327727561,0.033,94441.0,94440.0,0.053019]
[1735327728066,0.0346,94447.0,94446.0,0.053016]
[1735327728250,0.11359443,94448.0,94446.0,0.413816]
[1735327728754,0.0328,94453.0,94447.0,1.5]
[1735327730061,0.0328,94453.0,94450.0,0.053013]